[Event "Early-Titled-Tuesday-Blitz-January-23-2024"]
[Site "Chess.com"]
[Date "2024.01.23"]
[Round "6"]
[White "Timerkhanov"]
[Black "LiadCuba"]
[Result "1-0"]
[WhiteElo "2677"]
[BlackElo "2443"]
[TimeControl "180+1"]
[EndTime "9:06:37 PST"]
[Termination "Timerkhanov won by resignation"]

1. d4 {[%clk 0:03:00.9]} 1... d5 {[%clk 0:02:50.1]} 2. Nf3 {[%clk 0:02:58.8]}
2... Nf6 {[%clk 0:02:50.1]} 3. g3 {[%clk 0:02:59]} 3... c5 {[%clk 0:02:49.3]} 4.
Bg2 {[%clk 0:02:59.6]} 4... Nc6 {[%clk 0:02:48.4]} 5. O-O {[%clk 0:03:00.2]}
5... e6 {[%clk 0:02:42.1]} 6. c4 {[%clk 0:02:59.4]} 6... dxc4 {[%clk 0:02:40.8]}
7. Qa4 {[%clk 0:02:59.6]} 7... Bd7 {[%clk 0:02:39.9]} 8. Qxc4 {[%clk 0:02:56.1]}
8... b5 {[%clk 0:02:39.9]} 9. Qd3 {[%clk 0:02:54.8]} 9... c4 {[%clk 0:02:31.3]}
10. Qd1 {[%clk 0:02:55]} 10... Rc8 {[%clk 0:02:24.7]} 11. Re1 {[%clk 0:02:55.3]}
11... Bb4 {[%clk 0:02:24.1]} 12. Bd2 {[%clk 0:02:54.5]} 12... O-O {[%clk
0:02:22.9]} 13. e4 {[%clk 0:02:53.3]} 13... Bxd2 {[%clk 0:02:15.7]} 14. Nbxd2
{[%clk 0:02:45.6]} 14... Nb4 {[%clk 0:02:15.4]} 15. e5 {[%clk 0:02:41.5]} 15...
Nfd5 {[%clk 0:02:15.3]} 16. Ne4 {[%clk 0:02:40.4]} 16... Nd3 {[%clk 0:02:09.6]}
17. Re2 {[%clk 0:02:39.2]} 17... b4 {[%clk 0:02:10]} 18. Nd6 {[%clk 0:02:37.8]}
18... Rc6 {[%clk 0:02:03.5]} 19. Nxc4 {[%clk 0:02:33]} 19... Nxf2 {[%clk
0:02:00.4]} 20. Rxf2 {[%clk 0:02:21.1]} 20... Rxc4 {[%clk 0:02:00.5]} 21. Qd3
{[%clk 0:02:21.6]} 21... Bb5 {[%clk 0:01:59.4]} 22. Qe4 {[%clk 0:02:18]} 22...
Rc7 {[%clk 0:01:41.5]} 23. h4 {[%clk 0:02:16.4]} 23... h6 {[%clk 0:01:41.3]} 24.
Nd2 {[%clk 0:02:11.2]} 24... Ne7 {[%clk 0:01:35.5]} 25. Kh2 {[%clk 0:02:05.7]}
25... Bc6 {[%clk 0:01:24.7]} 26. Qf4 {[%clk 0:02:00.4]} 26... Nf5 {[%clk
0:01:24.8]} 27. Bxc6 {[%clk 0:01:53.7]} 27... Rxc6 {[%clk 0:01:25.7]} 28. Nb3
{[%clk 0:01:53.7]} 28... a5 {[%clk 0:01:13.8]} 29. a4 {[%clk 0:01:45.3]} 29...
Qd5 {[%clk 0:01:04]} 30. Qf3 {[%clk 0:01:35.7]} 30... Qxf3 {[%clk 0:00:58]} 31.
Rxf3 {[%clk 0:01:36.6]} 31... Rc2+ {[%clk 0:00:57.8]} 32. Kh3 {[%clk 0:01:37.2]}
32... Rxb2 {[%clk 0:00:58.3]} 33. d5 {[%clk 0:01:37.8]} 33... Rxb3 {[%clk
0:00:42.1]} 34. Rxb3 {[%clk 0:01:37]} 34... exd5 {[%clk 0:00:42.6]} 35. Rd3
{[%clk 0:01:35.3]} 35... Ne7 {[%clk 0:00:37.2]} 36. Rc1 {[%clk 0:01:34.6]} 36...
Rb8 {[%clk 0:00:33.3]} 37. Rc5 {[%clk 0:01:34.4]} 37... b3 {[%clk 0:00:31.9]}
38. Rd1 {[%clk 0:01:32.3]} 38... Rb4 {[%clk 0:00:30.6]} 39. Rxa5 {[%clk
0:01:31.4]} 39... b2 {[%clk 0:00:25.6]} 40. Rb1 {[%clk 0:01:30.4]} 40... Nc6
{[%clk 0:00:20.6]} 41. Rxd5 {[%clk 0:01:25.7]} 41... Rxa4 {[%clk 0:00:19.2]} 42.
Rxb2 {[%clk 0:01:25.6]} 42... Re4 {[%clk 0:00:19.9]} 43. Rbb5 {[%clk 0:01:16]}
43... h5 {[%clk 0:00:17.7]} 44. Rbc5 {[%clk 0:01:15.5]} 44... Nd4 {[%clk
0:00:17.7]} 45. Rd8+ {[%clk 0:01:13]} 45... Kh7 {[%clk 0:00:17.7]} 46. Rd7
{[%clk 0:01:13.5]} 46... Ne6 {[%clk 0:00:13.4]} 47. Ra5 {[%clk 0:01:10.2]} 47...
Kg6 {[%clk 0:00:12]} 48. Raa7 {[%clk 0:01:09.2]} 48... Re3 {[%clk 0:00:11.4]}
49. Rxf7 {[%clk 0:01:08.9]} 49... Rxe5 {[%clk 0:00:11.5]} 50. Rfb7 {[%clk
0:01:07.3]} 50... Re3 {[%clk 0:00:11.1]} 51. Rb6 {[%clk 0:01:07.5]} 51... Kh7
{[%clk 0:00:10.4]} 52. Kg2 {[%clk 0:01:06.6]} 52... Re2+ {[%clk 0:00:10.1]} 53.
Kf1 {[%clk 0:01:04.8]} 53... Re4 {[%clk 0:00:08.4]} 54. Re7 {[%clk 0:01:05.2]}
54... Kg8 {[%clk 0:00:05.8]} 55. Rexe6 {[%clk 0:01:05]} 55... Rg4 {[%clk
0:00:05.7]} 56. Kf2 {[%clk 0:01:04.9]} 56... Ra4 {[%clk 0:00:05.5]} 57. Re7
{[%clk 0:01:02.8]} 57... Kf8 {[%clk 0:00:05.7]} 58. Rbb7 {[%clk 0:01:02.4]}
58... Ra2+ {[%clk 0:00:06.1]} 59. Kg1 {[%clk 0:01:02.4]} 59... Ra1+ {[%clk
0:00:06.4]} 60. Kh2 {[%clk 0:01:02.9]} 60... Ra2+ {[%clk 0:00:07.3]} 61. Kh3
{[%clk 0:01:02.9]} 61... Ra1 {[%clk 0:00:07]} 62. Rf7+ {[%clk 0:01:03.2]} 62...
Ke8 {[%clk 0:00:06.8]} 63. Rxg7 {[%clk 0:01:04.1]} 63... Kf8 {[%clk 0:00:06.8]}
64. Rh7 {[%clk 0:01:04.6]} 64... Kg8 {[%clk 0:00:07.1]} 65. Rxh5 {[%clk
0:01:05.2]} 65... Rh1+ {[%clk 0:00:06.9]} 66. Kg4 {[%clk 0:01:04.6]} 66... Rb1
{[%clk 0:00:07.3]} 67. Rxb1 {[%clk 0:01:02.5]} 1-0

[Event "Early-Titled-Tuesday-Blitz-January-23-2024"]
[Site "Chess.com"]
[Date "2024.01.23"]
[Round "6"]
[White "Mikhail_Golubev"]
[Black "Arlo2024"]
[Result "1-0"]
[WhiteElo "2509"]
[BlackElo "2292"]
[TimeControl "180+1"]
[EndTime "9:06:37 PST"]
[Termination "Mikhail_Golubev won on time"]

1. e4 {[%clk 0:03:00.9]} 1... e6 {[%clk 0:02:59.7]} 2. d4 {[%clk 0:03:00]} 2...
d5 {[%clk 0:03:00.3]} 3. Nc3 {[%clk 0:03:00.3]} 3... dxe4 {[%clk 0:03:01.2]} 4.
Nxe4 {[%clk 0:02:59.8]} 4... Nd7 {[%clk 0:03:02]} 5. Bd3 {[%clk 0:02:54.6]} 5...
Ngf6 {[%clk 0:03:02.9]} 6. Nxf6+ {[%clk 0:02:54.5]} 6... Nxf6 {[%clk 0:03:02.6]}
7. Bg5 {[%clk 0:02:54.3]} 7... h6 {[%clk 0:03:01.9]} 8. Bh4 {[%clk 0:02:50.8]}
8... c5 {[%clk 0:02:58.2]} 9. Nf3 {[%clk 0:02:43.2]} 9... cxd4 {[%clk
0:02:55.3]} 10. Nxd4 {[%clk 0:02:30.6]} 10... Bd7 {[%clk 0:02:43.4]} 11. Qe2
{[%clk 0:02:23]} 11... Qa5+ {[%clk 0:02:29.8]} 12. c3 {[%clk 0:02:17.1]} 12...
Nd5 {[%clk 0:02:17.1]} 13. Qe5 {[%clk 0:01:47.3]} 13... Qc7 {[%clk 0:01:31.4]}
14. Bg3 {[%clk 0:01:45.9]} 14... Qxe5+ {[%clk 0:01:23.7]} 15. Bxe5 {[%clk
0:01:46.8]} 15... O-O-O {[%clk 0:01:13.9]} 16. Nb5 {[%clk 0:01:43.4]} 16... Bxb5
{[%clk 0:01:09.1]} 17. Bxb5 {[%clk 0:01:44.3]} 17... f6 {[%clk 0:01:07.2]} 18.
Bg3 {[%clk 0:01:36.9]} 18... e5 {[%clk 0:01:05.5]} 19. O-O-O {[%clk 0:01:32.2]}
19... Bc5 {[%clk 0:01:04.3]} 20. h4 {[%clk 0:01:21.7]} 20... Kc7 {[%clk
0:00:42.3]} 21. h5 {[%clk 0:01:07.7]} 21... Nf4 {[%clk 0:00:36.7]} 22. Rxd8
{[%clk 0:00:47.3]} 22... Rxd8 {[%clk 0:00:33.5]} 23. Kc2 {[%clk 0:00:46.2]}
23... a6 {[%clk 0:00:16.9]} 24. Bf1 {[%clk 0:00:44.7]} 24... b5 {[%clk
0:00:14.9]} 25. Rh4 {[%clk 0:00:42.9]} 25... Ne6 {[%clk 0:00:12.2]} 26. a4
{[%clk 0:00:41.5]} 26... Kb6 {[%clk 0:00:11.7]} 27. axb5 {[%clk 0:00:39.3]}
27... axb5 {[%clk 0:00:12.6]} 28. Rg4 {[%clk 0:00:28.8]} 28... Ng5 {[%clk
0:00:12.1]} 29. b4 {[%clk 0:00:19.6]} 29... Bf8 {[%clk 0:00:10.3]} 30. f4 {[%clk
0:00:17.5]} 30... f5 {[%clk 0:00:09.5]} 31. Rh4 {[%clk 0:00:17.6]} 31... Ne4
{[%clk 0:00:08.8]} 32. Be1 {[%clk 0:00:16.5]} 32... Be7 {[%clk 0:00:08.3]} 33.
Rh3 {[%clk 0:00:14.6]} 33... exf4 {[%clk 0:00:08.3]} 34. Rf3 {[%clk 0:00:11]}
34... Bg5 {[%clk 0:00:07.9]} 35. Bd3 {[%clk 0:00:10.9]} 35... Ng3 {[%clk
0:00:07.3]} 36. Bxg3 {[%clk 0:00:10]} 36... fxg3 {[%clk 0:00:07.3]} 37. Rxf5
{[%clk 0:00:10.5]} 37... Rd7 {[%clk 0:00:05.9]} 38. Rxb5+ {[%clk 0:00:10.2]}
38... Kc6 {[%clk 0:00:06]} 39. Rc5+ {[%clk 0:00:09.3]} 39... Kb6 {[%clk
0:00:05]} 40. Be4 {[%clk 0:00:09.1]} 40... Re7 {[%clk 0:00:04.7]} 41. Bf3 {[%clk
0:00:08.4]} 41... Rf7 {[%clk 0:00:03.9]} 42. Rc6+ {[%clk 0:00:08.2]} 42... Kb5
{[%clk 0:00:03.5]} 43. Rc5+ {[%clk 0:00:08]} 43... Kb6 {[%clk 0:00:03.1]} 44.
Rc4 {[%clk 0:00:08]} 1-0

[Event "Early-Titled-Tuesday-Blitz-January-23-2024"]
[Site "Chess.com"]
[Date "2024.01.23"]
[Round "6"]
[White "snowlord"]
[Black "Lady_Nika"]
[Result "1-0"]
[WhiteElo "2857"]
[BlackElo "2566"]
[TimeControl "180+1"]
[EndTime "9:06:39 PST"]
[Termination "snowlord won by resignation"]

1. e4 {[%clk 0:03:00.1]} 1... e6 {[%clk 0:02:59.9]} 2. Qe2 {[%clk 0:02:57.9]}
2... Be7 {[%clk 0:02:56.8]} 3. e5 {[%clk 0:02:56.1]} 3... d5 {[%clk 0:02:56.8]}
4. Qg4 {[%clk 0:02:55.6]} 4... g6 {[%clk 0:02:56.5]} 5. d4 {[%clk 0:02:55]} 5...
h5 {[%clk 0:02:56.4]} 6. Qf4 {[%clk 0:02:54]} 6... c5 {[%clk 0:02:55.2]} 7. dxc5
{[%clk 0:02:52.6]} 7... Bxc5 {[%clk 0:02:51.3]} 8. Nf3 {[%clk 0:02:52.9]} 8...
Be7 {[%clk 0:02:49.6]} 9. c4 {[%clk 0:02:49.3]} 9... Nc6 {[%clk 0:02:46]} 10.
cxd5 {[%clk 0:02:43.5]} 10... exd5 {[%clk 0:02:41]} 11. Bb5 {[%clk 0:02:43.2]}
11... Be6 {[%clk 0:02:39.9]} 12. Nc3 {[%clk 0:02:37]} 12... a6 {[%clk
0:02:36.5]} 13. Bxc6+ {[%clk 0:02:35.3]} 13... bxc6 {[%clk 0:02:36.6]} 14. Qa4
{[%clk 0:02:24.4]} 14... Qd7 {[%clk 0:02:33.6]} 15. Bg5 {[%clk 0:02:19.5]} 15...
Bxg5 {[%clk 0:02:22.5]} 16. Nxg5 {[%clk 0:02:19.1]} 16... Ne7 {[%clk 0:02:22.1]}
17. Rd1 {[%clk 0:02:06.6]} 17... Qa7 {[%clk 0:02:03.1]} 18. O-O {[%clk
0:01:52.5]} 18... Bg4 {[%clk 0:01:53.4]} 19. Rxd5 {[%clk 0:01:22.5]} 19... Nxd5
{[%clk 0:01:52.2]} 20. Qxc6+ {[%clk 0:01:22.4]} 20... Bd7 {[%clk 0:01:24.2]} 21.
Qxd5 {[%clk 0:01:22.7]} 21... O-O {[%clk 0:01:23.9]} 22. Nce4 {[%clk 0:01:22.7]}
22... Bf5 {[%clk 0:00:59.4]} 23. Nd6 {[%clk 0:01:19.5]} 23... Rad8 {[%clk
0:00:55.6]} 24. h4 {[%clk 0:01:05]} 24... Kg7 {[%clk 0:00:49]} 25. Nxf5+ {[%clk
0:01:02.5]} 25... gxf5 {[%clk 0:00:48.9]} 26. Qf3 {[%clk 0:01:03.3]} 26... Qd7
{[%clk 0:00:28.9]} 27. Nh3 {[%clk 0:00:35.9]} 27... Qe7 {[%clk 0:00:12.1]} 28.
Qg3+ {[%clk 0:00:29.3]} 28... Kh7 {[%clk 0:00:11.6]} 29. Ng5+ {[%clk 0:00:28.1]}
29... Kh6 {[%clk 0:00:11.5]} 30. Qf4 {[%clk 0:00:27.7]} 30... Kg6 {[%clk
0:00:11.5]} 31. Qg3 {[%clk 0:00:27.7]} 31... Kh6 {[%clk 0:00:10.6]} 32. Re1
{[%clk 0:00:28.3]} 32... Rd4 {[%clk 0:00:09.4]} 33. Qe3 {[%clk 0:00:25.1]} 33...
Rg4 {[%clk 0:00:07.4]} 34. Nxf7+ {[%clk 0:00:20.9]} 34... Kg7 {[%clk 0:00:06.8]}
35. Ng5 {[%clk 0:00:14.1]} 35... Rxh4 {[%clk 0:00:04.3]} 36. Ne6+ {[%clk
0:00:14.5]} 36... Qxe6 {[%clk 0:00:03.4]} 37. Qg5+ {[%clk 0:00:14.9]} 37... Qg6
{[%clk 0:00:03.8]} 38. Qxh4 {[%clk 0:00:15.5]} 38... Rg8 {[%clk 0:00:04.3]} 39.
e6 {[%clk 0:00:15.1]} 39... Kh7 {[%clk 0:00:03]} 40. g3 {[%clk 0:00:15.7]} 40...
Rg7 {[%clk 0:00:03.1]} 41. e7 {[%clk 0:00:15.8]} 41... f4 {[%clk 0:00:04]} 42.
e8=Q {[%clk 0:00:15.3]} 1-0

[Event "Early-Titled-Tuesday-Blitz-January-23-2024"]
[Site "Chess.com"]
[Date "2024.01.23"]
[Round "6"]
[White "Klavdia_Nik"]
[Black "kekic76"]
[Result "0-1"]
[WhiteElo "2160"]
[BlackElo "2323"]
[TimeControl "180+1"]
[EndTime "9:06:40 PST"]
[Termination "kekic76 won on time"]

1. Nf3 {[%clk 0:02:56.6]} 1... d5 {[%clk 0:02:56.5]} 2. c4 {[%clk 0:02:56.2]}
2... e6 {[%clk 0:02:56.1]} 3. b3 {[%clk 0:02:56.1]} 3... Nf6 {[%clk 0:02:56]} 4.
Bb2 {[%clk 0:02:55.8]} 4... Be7 {[%clk 0:02:56]} 5. cxd5 {[%clk 0:02:55]} 5...
exd5 {[%clk 0:02:56.9]} 6. g3 {[%clk 0:02:54.5]} 6... O-O {[%clk 0:02:57]} 7.
Bg2 {[%clk 0:02:54.8]} 7... c6 {[%clk 0:02:55.8]} 8. O-O {[%clk 0:02:54.8]} 8...
Bf5 {[%clk 0:02:55.9]} 9. d3 {[%clk 0:02:55]} 9... Nbd7 {[%clk 0:02:56]} 10.
Nbd2 {[%clk 0:02:55.2]} 10... a5 {[%clk 0:02:52.3]} 11. a3 {[%clk 0:02:54.4]}
11... Re8 {[%clk 0:02:43.9]} 12. Re1 {[%clk 0:02:52.9]} 12... Bc5 {[%clk
0:02:36.6]} 13. Nd4 {[%clk 0:02:31.6]} 13... Bg6 {[%clk 0:02:34]} 14. N2f3
{[%clk 0:02:20.4]} 14... Qb6 {[%clk 0:02:20.8]} 15. Qc2 {[%clk 0:02:09.5]} 15...
Ne5 {[%clk 0:01:37.9]} 16. Nxe5 {[%clk 0:01:52.6]} 16... Bxd4 {[%clk 0:01:27]}
17. Bxd4 {[%clk 0:01:51.3]} 17... Qxd4 {[%clk 0:01:26.3]} 18. Nxg6 {[%clk
0:01:51.4]} 18... hxg6 {[%clk 0:01:25.8]} 19. e3 {[%clk 0:01:45.6]} 19... Qb6
{[%clk 0:01:18.4]} 20. Re2 {[%clk 0:01:40.2]} 20... Nd7 {[%clk 0:01:10.1]} 21.
d4 {[%clk 0:01:39.5]} 21... Nf6 {[%clk 0:01:00.5]} 22. Rc1 {[%clk 0:01:21.3]}
22... Ne4 {[%clk 0:00:53.2]} 23. Bxe4 {[%clk 0:01:12.8]} 23... Rxe4 {[%clk
0:00:51.5]} 24. Qd3 {[%clk 0:01:03]} 24... Rae8 {[%clk 0:00:49.7]} 25. Rec2
{[%clk 0:01:01.6]} 25... Qd8 {[%clk 0:00:27.1]} 26. b4 {[%clk 0:00:53.3]} 26...
axb4 {[%clk 0:00:26.6]} 27. axb4 {[%clk 0:00:54.2]} 27... Qe7 {[%clk 0:00:25.6]}
28. b5 {[%clk 0:00:52.3]} 28... cxb5 {[%clk 0:00:20]} 29. Qxb5 {[%clk
0:00:48.6]} 29... Rd8 {[%clk 0:00:15.8]} 30. Rc7 {[%clk 0:00:46.1]} 30... Qg5
{[%clk 0:00:13.3]} 31. Qxb7 {[%clk 0:00:33.5]} 31... Rxe3 {[%clk 0:00:08.6]} 32.
Rf1 {[%clk 0:00:21.3]} 32... Rf3 {[%clk 0:00:06.7]} 33. Kg2 {[%clk 0:00:14.5]}
33... Rf6 {[%clk 0:00:06.9]} 34. Rd7 {[%clk 0:00:10.8]} 34... Re8 {[%clk
0:00:06.8]} 35. Qxd5 {[%clk 0:00:06.4]} 35... Qg4 {[%clk 0:00:06.5]} 36. Rd8
{[%clk 0:00:04.6]} 36... Re6 {[%clk 0:00:04.6]} 37. Rxe8+ {[%clk 0:00:04.1]}
37... Rxe8 {[%clk 0:00:05.5]} 38. Qf3 {[%clk 0:00:03.7]} 38... Qxd4 {[%clk
0:00:05.1]} 39. Rd1 {[%clk 0:00:02.4]} 39... Qe4 {[%clk 0:00:05.1]} 0-1

[Event "Early-Titled-Tuesday-Blitz-January-23-2024"]
[Site "Chess.com"]
[Date "2024.01.23"]
[Round "6"]
[White "Denis_Makhnyov"]
[Black "GMWSO"]
[Result "0-1"]
[WhiteElo "3022"]
[BlackElo "3105"]
[TimeControl "180+1"]
[EndTime "9:06:41 PST"]
[Termination "GMWSO won on time"]

1. d4 {[%clk 0:03:00.9]} 1... Nf6 {[%clk 0:02:58.4]} 2. c4 {[%clk 0:03:01.6]}
2... e6 {[%clk 0:02:58.2]} 3. Nc3 {[%clk 0:03:02.3]} 3... Bb4 {[%clk 0:02:58]}
4. e3 {[%clk 0:03:03]} 4... O-O {[%clk 0:02:57.5]} 5. Bd3 {[%clk 0:03:03.7]}
5... c5 {[%clk 0:02:56.4]} 6. Ne2 {[%clk 0:03:03]} 6... cxd4 {[%clk 0:02:55.4]}
7. exd4 {[%clk 0:03:03.5]} 7... d5 {[%clk 0:02:55.6]} 8. cxd5 {[%clk 0:03:04]}
8... Nxd5 {[%clk 0:02:54.2]} 9. O-O {[%clk 0:03:04.3]} 9... Nf6 {[%clk
0:02:46.4]} 10. Bg5 {[%clk 0:02:56]} 10... Be7 {[%clk 0:02:40.6]} 11. Bc2 {[%clk
0:02:28.6]} 11... Nc6 {[%clk 0:02:24.6]} 12. a3 {[%clk 0:02:28.8]} 12... g6
{[%clk 0:02:10.2]} 13. Qd3 {[%clk 0:02:21.9]} 13... e5 {[%clk 0:02:08.8]} 14.
Bh6 {[%clk 0:01:15.3]} 14... exd4 {[%clk 0:01:39.2]} 15. Bxf8 {[%clk 0:01:14.7]}
15... Bxf8 {[%clk 0:01:31.3]} 16. Rad1 {[%clk 0:00:40.3]} 16... Bf5 {[%clk
0:01:31.2]} 17. Qd2 {[%clk 0:00:40.6]} 17... dxc3 {[%clk 0:01:28.4]} 18. Qxc3
{[%clk 0:00:41.1]} 18... Qc8 {[%clk 0:01:24.1]} 19. Bb3 {[%clk 0:00:27.7]} 19...
Bg7 {[%clk 0:01:18.3]} 20. Qc5 {[%clk 0:00:06.5]} 20... Ne4 {[%clk 0:01:09.2]}
21. Qe3 {[%clk 0:00:06.7]} 21... Na5 {[%clk 0:00:56.8]} 22. Bd5 {[%clk
0:00:05.6]} 22... Nf6 {[%clk 0:00:54.1]} 23. Bf3 {[%clk 0:00:05.1]} 23... Nc4
{[%clk 0:00:45]} 24. Qb3 {[%clk 0:00:04.8]} 24... Nb6 {[%clk 0:00:27.6]} 25. Nd4
{[%clk 0:00:04.6]} 25... Be4 {[%clk 0:00:26.8]} 26. Rc1 {[%clk 0:00:04.1]} 26...
Qd7 {[%clk 0:00:25]} 27. Rfd1 {[%clk 0:00:04.5]} 27... Bxf3 {[%clk 0:00:24.7]}
28. Nxf3 {[%clk 0:00:04.8]} 28... Qe7 {[%clk 0:00:24.1]} 29. Re1 {[%clk
0:00:05.3]} 29... Qd6 {[%clk 0:00:21.5]} 30. Red1 {[%clk 0:00:05.5]} 30... Nfd5
{[%clk 0:00:21.7]} 31. g3 {[%clk 0:00:04.5]} 31... h6 {[%clk 0:00:15.8]} 32. Rc2
{[%clk 0:00:05.1]} 32... Qe6 {[%clk 0:00:11.4]} 33. Re1 {[%clk 0:00:05.2]} 33...
Qf5 {[%clk 0:00:10.7]} 34. Rc5 {[%clk 0:00:05.6]} 34... Bf8 {[%clk 0:00:08.2]}
35. Rb5 {[%clk 0:00:05.2]} 35... a6 {[%clk 0:00:08.4]} 36. Nd4 {[%clk
0:00:05.4]} 36... Qf6 {[%clk 0:00:07.2]} 37. Rxd5 {[%clk 0:00:05.6]} 37... Nxd5
{[%clk 0:00:08.1]} 38. Qxd5 {[%clk 0:00:06.2]} 38... Rd8 {[%clk 0:00:08.6]} 39.
Qxb7 {[%clk 0:00:05.8]} 39... Rxd4 {[%clk 0:00:08.6]} 40. Re8 {[%clk 0:00:06]}
40... Rd2 {[%clk 0:00:08.7]} 41. Rxf8+ {[%clk 0:00:02.8]} 41... Kxf8 {[%clk
0:00:08.7]} 42. Qb3 {[%clk 0:00:03.5]} 42... Qxf2+ {[%clk 0:00:07.5]} 0-1

[Event "Early-Titled-Tuesday-Blitz-January-23-2024"]
[Site "Chess.com"]
[Date "2024.01.23"]
[Round "6"]
[White "tptagain"]
[Black "Njal28"]
[Result "1/2-1/2"]
[WhiteElo "2929"]
[BlackElo "3049"]
[TimeControl "180+1"]
[EndTime "9:06:41 PST"]
[Termination "Game drawn by repetition"]

1. Nf3 {[%clk 0:03:00.9]} 1... Nf6 {[%clk 0:02:55.9]} 2. d4 {[%clk 0:03:01.2]}
2... d5 {[%clk 0:02:54.9]} 3. e3 {[%clk 0:03:01.4]} 3... e6 {[%clk 0:02:53.2]}
4. Bd3 {[%clk 0:03:01.3]} 4... Be7 {[%clk 0:02:51.4]} 5. O-O {[%clk 0:03:00.7]}
5... O-O {[%clk 0:02:52]} 6. c4 {[%clk 0:02:57.9]} 6... a6 {[%clk 0:02:49.9]} 7.
b3 {[%clk 0:02:56.9]} 7... b6 {[%clk 0:02:48.5]} 8. Bb2 {[%clk 0:02:54.8]} 8...
Bb7 {[%clk 0:02:47.3]} 9. Nbd2 {[%clk 0:02:52]} 9... Nbd7 {[%clk 0:02:43.6]} 10.
Qe2 {[%clk 0:02:47.7]} 10... dxc4 {[%clk 0:02:43.6]} 11. Nxc4 {[%clk 0:02:44.2]}
11... c5 {[%clk 0:02:42.9]} 12. Rac1 {[%clk 0:02:38.2]} 12... b5 {[%clk
0:02:32.8]} 13. Nce5 {[%clk 0:02:37]} 13... Nxe5 {[%clk 0:02:27]} 14. Nxe5
{[%clk 0:02:28.3]} 14... cxd4 {[%clk 0:02:25.6]} 15. Bxd4 {[%clk 0:02:27.7]}
15... Qd5 {[%clk 0:02:09.3]} 16. Qf3 {[%clk 0:02:08.2]} 16... Qxd4 {[%clk
0:01:44.4]} 17. exd4 {[%clk 0:01:58.9]} 17... Bxf3 {[%clk 0:01:44.3]} 18. Nxf3
{[%clk 0:01:54.2]} 18... Rfc8 {[%clk 0:01:40]} 19. a4 {[%clk 0:01:52]} 19...
bxa4 {[%clk 0:01:28.5]} 20. bxa4 {[%clk 0:01:52.4]} 20... a5 {[%clk 0:01:27.8]}
21. Ne5 {[%clk 0:01:52.4]} 21... Nd5 {[%clk 0:01:21.3]} 22. Be4 {[%clk
0:01:36.7]} 22... Ba3 {[%clk 0:01:14.9]} 23. Rb1 {[%clk 0:00:56.2]} 23... Bb4
{[%clk 0:01:14.9]} 24. Rfc1 {[%clk 0:00:47.5]} 24... Nc3 {[%clk 0:00:56.2]} 25.
Bxa8 {[%clk 0:00:29.6]} 25... Ne2+ {[%clk 0:00:56.1]} 26. Kf1 {[%clk 0:00:29.6]}
26... Nxc1 {[%clk 0:00:57]} 27. Nc6 {[%clk 0:00:20.6]} 27... Na2 {[%clk
0:00:20.4]} 28. Rb2 {[%clk 0:00:13.4]} 28... Nc3 {[%clk 0:00:13.2]} 29. Nxb4
{[%clk 0:00:12]} 29... Rxa8 {[%clk 0:00:04.9]} 30. Nc6 {[%clk 0:00:09.6]} 30...
Nxa4 {[%clk 0:00:05.1]} 31. Ra2 {[%clk 0:00:09.5]} 31... Nc3 {[%clk 0:00:03.3]}
32. Rxa5 {[%clk 0:00:09.4]} 32... Rxa5 {[%clk 0:00:03.9]} 33. Nxa5 {[%clk
0:00:09.8]} 33... Nb5 {[%clk 0:00:04.5]} 34. Nb3 {[%clk 0:00:09.7]} 34... Kf8
{[%clk 0:00:05.3]} 35. Ke2 {[%clk 0:00:10.2]} 35... Ke7 {[%clk 0:00:06.1]} 36.
Kd3 {[%clk 0:00:10.7]} 36... Nd6 {[%clk 0:00:06.4]} 37. f3 {[%clk 0:00:10.7]}
37... h5 {[%clk 0:00:06.9]} 38. g3 {[%clk 0:00:10.7]} 38... Nf5 {[%clk
0:00:07.2]} 39. Ke4 {[%clk 0:00:10.3]} 39... Kd6 {[%clk 0:00:06.9]} 40. Na5
{[%clk 0:00:10.7]} 40... f6 {[%clk 0:00:05.5]} 41. Nc4+ {[%clk 0:00:10.9]} 41...
Ke7 {[%clk 0:00:05.6]} 42. d5 {[%clk 0:00:10.4]} 42... exd5+ {[%clk 0:00:04.4]}
43. Kxd5 {[%clk 0:00:10.3]} 43... Kf7 {[%clk 0:00:04.5]} 44. Nd6+ {[%clk
0:00:09.7]} 44... Kg6 {[%clk 0:00:04.4]} 45. Nc4 {[%clk 0:00:06.8]} 45... Kf7
{[%clk 0:00:02.4]} 46. Nd6+ {[%clk 0:00:06.7]} 46... Kg6 {[%clk 0:00:03.1]} 47.
Nc4 {[%clk 0:00:04.7]} 47... Kf7 {[%clk 0:00:03.4]} 1/2-1/2